bitfinex/quotes_ETHUSD_20250505
["timestamp","ask_amount","ask_price","bid_price","bid_amount"]
[1746442646339,8.52455665,1810.1,1810.0,2.71422197]
[1746442646752,9.15709356,1810.1,1810.0,2.71422197]
[1746442647472,5.52486187,1810.0,1809.9,2.71658651]
[1746442647658,8.52516713,1809.9,1809.8,2.77302357]
[1746442650268,9.15770404,1809.9,1809.8,2.77302357]
[1746442650574,9.57407523,1809.9,1809.8,2.77302357]
[1746442650946,9.15770404,1809.9,1809.8,2.77302357]
[1746442652237,5.5263885,1809.5,1809.2,2.78897107]
[1746442652442,5.52730488,1809.2,1809.1,2.74679791]
[1746442652773,5.52730488,1809.2,1809.1,3.29679791]
[1746442652962,5.52730488,1809.2,1809.1,2.74679791]
[1746442653165,4.80450488,1809.2,1809.1,2.74679791]
[1746442653474,4.80450488,1809.2,1809.1,3.29679791]
[1746442653669,4.86239939,1809.3,1809.1,3.29679791]
[1746442653885,5.52730488,1809.2,1809.1,3.29679791]
[1746442655572,5.52730488,1809.2,1809.1,2.74679791]
[1746442655772,5.52730488,1809.2,1809.1,3.29679791]
[1746442656143,5.08670488,1809.2,1809.1,3.29679791]
[1746442659763,5.52699939,1809.3,1809.2,3.29918968]
[1746442660572,7.89303781,1809.3,1809.2,3.29918968]
[1746442663592,5.52684107,1809.4,1809.2,3.29918968]
[1746442664690,5.52684107,1809.4,1809.2,3.86594331]
[1746442665650,2.36603842,1809.5,1809.4,0.55]
[1746442665852,11.05247116,1809.6,1809.4,3.57780702]
[1746442666482,5.5263885,1809.5,1809.4,4.12780702]
[1746442666693,5.5263885,1809.5,1809.4,4.60278967]
[1746442667589,4.4207885,1809.5,1809.4,4.60278967]
[1746442667795,5.52613064,1809.6,1809.4,4.60278967]
[1746442667796,4.94003064,1809.6,1809.4,4.60278967]
[1746442667958,3.0,1809.6,1809.4,4.60278967]
[1746442668155,2.6497,1809.6,1809.4,4.60278967]
[1746442668375,4.9262885,1809.5,1809.4,4.60278967]
[1746442668669,4.9962885,1809.5,1809.4,4.60278967]
[1746442668890,5.5263885,1809.5,1809.4,4.60278967]
[1746442669283,8.17591919,1809.6,1809.4,4.60278967]
[1746442669497,5.5263885,1809.5,1809.4,4.60278967]
[1746442669663,13.7022809,1809.6,1809.4,4.60278967]
[1746442669867,8.17591919,1809.6,1809.4,4.60278967]
[1746442670295,5.5263885,1809.5,1809.4,4.60278967]
[1746442670896,8.17591919,1809.6,1809.4,4.60278967]
[1746442671108,7.89242692,1809.5,1809.4,3.33790702]
[1746442680146,5.52669393,1809.4,1809.3,3.33600445]
[1746442693311,5.5263885,1809.5,1809.4,3.33790702]
[1746442694831,5.52622604,1809.6,1809.4,3.33790702]
[1746442695010,11.05258745,1809.6,1809.4,3.90466065]
[1746442695211,5.5263885,1809.5,1809.4,3.90466065]
[1746442695412,5.5263885,1809.5,1809.4,4.29512672]
[1746442696752,5.4833885,1809.5,1809.4,4.29512672]
[1746442697665,5.52622604,1809.6,1809.4,4.29512672]
[1746442699050,5.5262132,1809.6,1809.4,4.29512672]
[1746442699545,5.5262132,1809.6,1809.5,4.13746381]
[1746442700235,5.5262132,1809.6,1809.5,2.79106381]
[1746442702553,5.52761041,1809.1,1809.0,2.74734047]
[1746442702780,5.52761041,1809.1,1809.0,3.59644452]
[1746442703267,5.52761041,1809.1,1809.0,4.14644452]
[1746442704118,5.52761041,1809.1,1809.0,3.59644452]
[1746442704321,5.52761041,1809.1,1809.0,2.74734047]
[1746442704516,5.52761041,1809.1,1809.0,3.29734047]
[1746442706741,5.52761041,1809.1,1809.0,6.27624273]
[1746442710773,5.52761041,1809.1,1809.0,3.29734047]
[1746442717834,5.52744114,1809.2,1809.1,3.28155373]
[1746442718719,5.52716757,1809.3,1809.1,3.6097091]
[1746442718891,13.45517273,1809.6,1809.1,3.6097091]
[1746442718892,5.52658586,1809.5,1809.3,3.33600445]
[1746442722022,5.52669393,1809.4,1809.3,3.33600445]
[1746442722215,5.52658586,1809.5,1809.3,3.33600445]
[1746442722415,11.0532227,1809.5,1809.3,3.33600445]
[1746442722743,5.52658586,1809.5,1809.3,3.33600445]
[1746442723431,11.05324161,1809.5,1809.3,3.33600445]
[1746442723633,5.52658586,1809.5,1809.3,3.33600445]
[1746442723928,5.52658586,1809.5,1809.3,3.7521149]
[1746442725431,11.05323379,1809.5,1809.3,3.7521149]
[1746442728354,5.52669393,1809.4,1809.3,3.7521149]
[1746442729047,5.52669393,1809.4,1809.3,3.33600445]
[1746442734442,5.52658586,1809.5,1809.3,3.33600445]
[1746442735830,11.05319906,1809.5,1809.3,3.33600445]
[1746442736025,5.52614086,1809.6,1809.3,3.33600445]
[1746442736254,5.52614086,1809.6,1809.5,3.34106381]
[1746442737166,5.5263885,1809.5,1809.4,3.33790702]
[1746442737333,7.89242692,1809.5,1809.4,3.33790702]
[1746442743068,5.52516713,1809.9,1809.8,4.06193399]
[1746442743267,5.52499242,1810.0,1809.8,4.06193399]
[1746442743458,5.52516713,1809.9,1809.8,4.06193399]
[1746442743840,7.89103084,1810.0,1809.8,3.29513399]
[1746442744039,5.52516713,1809.9,1809.8,3.29513399]
[1746442747443,5.18209008,1809.9,1809.8,3.29513399]
[1746442748372,5.52473964,1810.1,1809.8,4.40514739]
[1746442749070,5.52496883,1810.0,1809.8,4.40514739]
[1746442749974,11.05006644,1810.0,1809.8,4.40514739]
[1746442750273,5.52496883,1810.0,1809.8,4.40514739]
[1746442750771,11.05008341,1810.0,1809.8,4.40514739]
[1746442750978,5.52496883,1810.0,1809.8,4.40514739]
[1746442753255,5.52472315,1810.1,1810.0,3.27827438]
[1746442756382,5.52486187,1810.0,1809.9,2.75403026]
[1746442756586,5.52608102,1809.7,1809.5,7.70306381]
[1746442756755,5.52607057,1809.7,1809.6,3.34682992]
[1746442758790,5.52608311,1809.6,1809.5,2.79106381]
[1746442759481,5.52608311,1809.6,1809.5,3.34106381]
[1746442767327,5.52608311,1809.6,1809.5,3.75569019]
[1746442768221,5.52608311,1809.6,1809.5,3.34106381]
[1746442770102,5.52607057,1809.7,1809.5,3.34106381]
[1746442770431,5.52600565,1809.7,1809.5,3.34106381]
[1746442772127,11.04601271,1809.7,1809.5,3.34106381]
[1746442772327,5.51999822,1809.7,1809.5,3.34106381]
[1746442772929,5.52608311,1809.6,1809.5,3.34106381]
[1746442774497,5.51999822,1809.7,1809.5,3.34106381]
[1746442775331,5.52608311,1809.6,1809.5,3.34106381]
[1746442776434,5.51999822,1809.7,1809.5,3.34106381]
[1746442777646,5.52561071,1809.8,1809.7,2.74937629]
[1746442777811,5.52561071,1809.8,1809.6,3.56912992]
[1746442778809,11.05135825,1809.8,1809.6,3.56912992]
[1746442779209,5.52561071,1809.8,1809.6,3.56912992]
[1746442779919,11.05132267,1809.8,1809.6,3.56912992]
[1746442780235,5.52561071,1809.8,1809.6,3.56912992]
[1746442780541,5.52577775,1809.7,1809.6,3.34682992]
[1746442782865,7.89164913,1809.8,1809.6,3.34682992]
[1746442783827,13.41738545,1809.8,1809.6,3.34682992]
[1746442784158,11.05134703,1809.8,1809.6,3.34682992]
[1746442784363,5.52561071,1809.8,1809.6,3.68151291]
[1746442785175,5.52577775,1809.7,1809.6,3.68151291]
[1746442786967,5.52561071,1809.8,1809.6,3.68151291]
[1746442787762,11.05130856,1809.8,1809.6,3.68151291]
[1746442788059,11.05130856,1809.8,1809.6,3.34682992]
[1746442788260,5.52561071,1809.8,1809.6,3.34682992]
[1746442788659,7.89138347,1809.9,1809.6,4.16102992]
[1746442789239,13.41682983,1809.9,1809.6,4.16102992]
[1746442789436,7.89138347,1809.9,1809.6,4.16102992]
[1746442790030,13.4168091,1809.9,1809.6,4.16102992]
[1746442790436,5.52534505,1809.9,1809.6,10.71239967]
[1746442790637,5.52534505,1809.9,1809.6,5.1864048]
[1746442792579,5.52534505,1809.9,1809.6,10.71248174]
[1746442793745,5.52504744,1810.0,1809.9,3.30403026]
[1746442796903,7.89044734,1810.2,1809.9,3.30403026]
[1746442797081,5.52465024,1810.1,1809.9,3.30403026]
[1746442797381,5.52465024,1810.1,1809.9,4.26414581]
[1746442797904,5.52486187,1810.0,1809.9,4.26414581]
[1746442798101,5.52486187,1810.0,1809.9,3.30403026]
[1746442799000,5.52465024,1810.1,1809.9,3.30403026]
[1746442799309,5.52486187,1810.0,1809.9,3.30403026]
[1746442800098,5.52465024,1810.1,1809.9,3.30403026]
[1746442800402,7.89046678,1810.2,1809.9,3.30403026]
[1746442800716,13.41494495,1810.2,1809.9,4.26413896]
[1746442800905,5.52413089,1810.3,1810.2,0.55]
[1746442801073,5.52413089,1810.3,1810.2,3.33422732]
[1746442802904,5.52413089,1810.3,1810.2,5.78422732]
[1746442803204,5.52413089,1810.3,1809.7,2.74937629]
[1746442803205,5.52547242,1809.8,1809.7,2.74937629]
[1746442803404,7.89109342,1810.0,1809.7,2.74937629]
[1746442803595,7.89109342,1810.0,1809.9,2.75403026]
[1746442803792,5.52410802,1810.3,1810.0,3.27827438]
[1746442803997,5.5238061,1810.4,1810.0,9.55491512]
[1746442804185,5.52313558,1810.6,1810.2,9.61031288]
[1746442804388,7.88895383,1810.7,1810.4,3.33936537]
[1746442804777,5.52317475,1810.6,1810.4,3.33936537]
[1746442805184,7.88937451,1810.5,1810.4,3.33936537]
[1746442806894,5.52425146,1810.2,1810.1,3.25777213]
[1746442807219,7.8898029,1810.4,1810.1,3.25777213]
[1746442807382,7.8898029,1810.4,1810.3,2.72597287]
[1746442809721,7.8898029,1810.4,1810.0,0.8038]
[1746442809722,5.52425146,1810.2,1810.1,2.70777213]
[1746442809920,7.89028988,1810.2,1810.1,3.25777213]
[1746442810127,5.52486187,1810.0,1809.9,2.75403026]
[1746442810417,7.89090029,1810.0,1809.8,2.74513399]
[1746442810591,7.89090029,1810.0,1809.8,3.34710275]
[1746442810788,7.89090029,1810.0,1809.9,3.30403026]
[1746442811023,7.89054244,1810.2,1809.9,3.30403026]
[1746442811315,5.52469289,1810.1,1809.9,3.30403026]
[1746442812107,5.52486187,1810.0,1809.9,3.30403026]
[1746442818183,4.883,1810.7,1809.9,4.20096905]
[1746442818408,5.52442753,1810.2,1810.1,2.70777213]
[1746442820820,5.5239463,1810.3,1810.1,4.06457213]
[1746442820998,5.5239463,1810.3,1810.2,3.33422732]
[1746442821825,7.88981405,1810.4,1810.2,3.33422732]
[1746442822218,10.39709631,1810.5,1810.2,3.90076308]
[1746442822419,10.39708773,1810.5,1810.2,4.92396344]
[1746442822724,5.52380767,1810.4,1810.2,4.92396344]
[1746442822894,5.52380767,1810.4,1810.2,3.90076308]
[1746442825903,5.5239463,1810.3,1810.2,3.90076308]
[1746442826233,7.88984609,1810.4,1810.2,3.90076308]
[1746442827323,5.52380767,1810.4,1810.2,3.90076308]
[1746442827741,5.1339997,1810.6,1810.4,3.33936537]
[1746442828211,5.1339997,1810.6,1810.4,4.36148652]
[1746442828739,5.1339997,1810.6,1810.4,3.33936537]
[1746442831158,5.52287015,1810.7,1810.4,3.33936537]
[1746442831357,5.52287015,1810.7,1810.4,9.42949363]
[1746442831649,5.52287015,1810.7,1810.6,2.7596343]
[1746442834109,5.52287015,1810.7,1810.6,3.3096343]
[1746442835129,5.42287015,1810.7,1810.6,3.3096343]
[1746442837856,5.42287015,1810.7,1810.6,4.1373343]
[1746442838382,5.42287015,1810.7,1810.6,4.55106773]
[1746442838554,5.52253968,1810.8,1810.7,3.27932367]
[1746442838760,5.52186609,1811.0,1810.7,3.27932367]
[1746442838960,5.52186609,1811.0,1810.9,3.32382394]
[1746442839162,5.52133925,1811.2,1810.9,3.71285991]
[1746442839477,5.52105113,1811.3,1811.2,2.77810862]
[1746442840179,5.52052246,1811.5,1811.3,0.8241]
[1746442840383,5.52052246,1811.5,1811.4,3.26389459]
[1746442840942,5.52089659,1811.3,1811.2,3.32810862]
[1746442841655,5.52089659,1811.3,1811.2,3.89464438]
[1746442841975,5.52089659,1811.3,1811.2,4.36651882]
[1746442842381,5.52089659,1811.3,1811.2,3.89464438]
[1746442845153,5.52034242,1811.5,1811.4,2.71389459]
[1746442845352,5.5201706,1811.6,1811.4,3.26389459]
[1746442845683,5.52028705,1811.5,1811.4,3.83043035]
[1746442845886,5.52028705,1811.5,1811.4,3.26389459]
[1746442846075,7.88632547,1811.5,1811.4,3.26389459]
[1746442846278,5.5205918,1811.4,1811.3,3.29783644]
[1746442848391,5.5205918,1811.4,1811.3,3.62762008]
[1746442848589,5.5205918,1811.4,1811.3,4.43932008]
[1746442848795,5.52018283,1811.6,1811.4,3.26389459]
[1746442849670,5.52028705,1811.5,1811.4,3.26389459]
[1746442850198,5.52028705,1811.5,1811.4,3.70443241]
[1746442853296,5.52018283,1811.6,1811.4,3.70443241]
[1746442853878,11.04043033,1811.6,1811.4,3.70443241]
[1746442854067,5.52010764,1811.6,1811.4,3.70443241]
[1746442854269,5.52028705,1811.5,1811.4,3.70443241]
[1746442855101,5.52010764,1811.6,1811.4,3.70443241]
[1746442855275,5.51981636,1811.7,1811.6,0.55]
[1746442857280,5.51981636,1811.7,1811.6,1.3682]
[1746442858319,5.51926457,1811.9,1811.6,1.3682]
[1746442858500,5.51945767,1811.8,1811.6,1.93473576]
[1746442858821,5.93459132,1812.0,1811.6,7.45470246]
[1746442859021,5.51930543,1811.9,1811.8,0.55]
[1746442860520,7.88534385,1811.9,1811.8,0.55]
[1746442860706,5.51940622,1811.8,1811.7,0.55]
[1746442863615,5.5205918,1811.4,1811.3,2.74783644]
[1746442864732,5.5205918,1811.4,1811.3,3.29783644]
[1746442864945,5.52042083,1811.5,1811.4,0.55]
[1746442865083,5.52015179,1811.6,1811.4,0.55]
[1746442865084,5.52015179,1811.6,1811.4,3.26389459]
[1746442865408,5.52028705,1811.5,1811.4,3.26389459]
[1746442865621,5.52015179,1811.6,1811.4,3.26389459]
[1746442865800,11.04040487,1811.6,1811.4,3.26389459]
[1746442865995,5.52015179,1811.6,1811.5,3.04463234]
[1746442866533,5.51980822,1811.7,1811.5,3.59463234]
[1746442866831,11.03903537,1811.8,1811.5,4.38123234]
[1746442867025,11.03908147,1811.8,1811.5,4.38123234]
[1746442867331,5.51943035,1811.8,1811.6,0.55]
[1746442867530,5.51943035,1811.8,1811.6,0.98812323]
[1746442867730,5.51967765,1811.7,1811.6,0.98812323]
[1746442872453,5.51967765,1811.7,1811.6,1.74282323]
[1746442873248,5.51943035,1811.8,1811.6,1.74282323]
[1746442873432,5.51967765,1811.7,1811.6,1.74282323]
[1746442875251,0.4156891,1812.0,1811.6,7.27611355]
[1746442875456,5.51935204,1811.9,1811.8,0.55]
[1746442875839,5.51930252,1811.9,1811.7,0.55]
[1746442876558,5.93457613,1812.0,1811.9,0.55]
[1746442876759,0.4156891,1812.0,1811.9,0.60518782]
[1746442876926,0.4156891,1812.0,1811.9,1.86144426]
[1746442877253,0.4156891,1812.0,1811.9,8.16431264]
[1746442878162,0.4156891,1812.0,1811.9,8.58213484]
[1746442878748,0.4156891,1812.0,1811.9,8.63731103]
[1746442880965,0.4156891,1812.0,1811.9,13.49031103]
[1746442881131,0.4156891,1812.0,1811.9,13.43513484]
[1746442881333,0.4156891,1812.0,1811.9,16.43513484]
[1746442884870,5.51711727,1812.6,1812.4,0.55]
[1746442885062,5.51724137,1812.5,1812.4,0.55]
[1746442885734,5.51769088,1812.4,1812.1,1.3436]
[1746442886375,5.51769088,1812.4,1812.2,0.05517376]
[1746442886576,5.51709076,1812.6,1812.4,0.55]
[1746442886743,5.51709076,1812.6,1812.4,0.60516919]
[1746442886948,5.51724137,1812.5,1812.4,0.60516919]
[1746442887254,5.51724137,1812.5,1812.4,0.55]
[1746442887775,5.51709076,1812.6,1812.4,0.55]
[1746442887976,7.88215413,1812.9,1812.4,0.55]
[1746442887977,5.51611571,1812.9,1812.4,0.55]
[1746442888280,3.0,1813.0,1812.4,1.23950317]
[1746442888281,5.51692021,1812.7,1812.4,1.23950317]
[1746442888470,11.03382421,1812.7,1812.4,1.23950317]
[1746442888669,5.51698725,1812.6,1812.4,1.23950317]
[1746442889450,5.51695151,1812.6,1812.4,1.23950317]
[1746442889852,5.51724137,1812.5,1812.4,1.23950317]
[1746442890173,5.51724137,1812.5,1812.4,0.55]
[1746442890748,5.51724137,1812.5,1812.1,5.636]
[1746442891083,5.5180406,1812.3,1812.1,5.636]
[1746442891487,5.5180406,1812.3,1812.2,0.55]
[1746442891689,5.5177249,1812.4,1812.2,0.55]
[1746442892775,5.51737525,1812.5,1812.2,2.09129913]
[1746442892970,5.51737525,1812.5,1812.3,0.05517086]
[1746442893364,5.51724828,1812.5,1812.3,0.05517086]
[1746442893684,5.51709598,1812.6,1812.3,0.05517086]
[1746442894363,5.51701536,1812.6,1812.5,0.55]
[1746442894561,5.51676807,1812.7,1812.5,0.55]
[1746442894787,5.51645133,1812.8,1812.5,0.55]
[1746442894978,5.51668528,1812.7,1812.5,0.55]
[1746442895175,0.89497778,1813.2,1812.5,0.55]
[1746442895371,5.51620703,1812.9,1812.7,0.55]
[1746442895674,5.51620703,1812.9,1812.6,0.55]
[1746442895675,5.51632833,1812.8,1812.6,0.55]
[1746442895878,5.51632833,1812.8,1812.6,1.0891]
[1746442897181,5.51617358,1812.9,1812.6,1.14426241]
[1746442898099,5.51617358,1812.9,1812.8,0.55]
[1746442899012,5.51602404,1812.9,1812.8,0.55]
[1746442899311,6.41029958,1813.2,1812.8,6.06619112]
[1746442899514,5.5157068,1813.1,1813.0,0.55]
[1746442899803,5.5157068,1813.1,1812.9,0.55]
[1746442899969,5.5157198,1813.0,1812.9,0.55]
[1746442900312,5.51567089,1813.1,1813.0,0.55]
[1746442900816,5.51584504,1813.0,1812.8,0.55]
[1746442901574,6.4102734,1813.2,1813.0,0.55]
[1746442902076,6.4102734,1813.2,1813.1,0.55]
[1746442904012,6.4102734,1813.2,1812.9,0.55]
[1746442904175,6.4102734,1813.2,1812.9,1.28992466]
[1746442904382,5.51563231,1813.1,1812.9,1.28992466]
[1746442904582,5.51563231,1813.1,1812.8,1.38828987]
[1746442905015,5.5157198,1813.0,1812.9,0.55]
[1746442905220,5.51563231,1813.1,1812.9,0.55]
[1746442905383,5.5157198,1813.0,1812.9,0.55]
[1746442905810,5.5157198,1813.0,1812.7,0.55]
[1746442906004,5.5157198,1813.0,1812.7,1.81209507]
[1746442906705,5.51614058,1812.9,1812.7,1.81209507]
[1746442907021,5.51592354,1813.0,1812.9,0.55]
[1746442907396,5.51592354,1813.0,1812.8,0.55]
[1746442907594,5.51602404,1812.9,1812.8,0.55]
[1746442908319,11.03190382,1813.0,1812.8,0.55]
[1746442908513,5.51602404,1812.9,1812.8,0.55]
[1746442908714,6.41010375,1813.2,1812.7,0.55]
[1746442908915,5.51632833,1812.8,1812.6,0.7672]
[1746442909082,5.51663264,1812.7,1812.5,3.56653576]
[1746442909287,5.51663264,1812.7,1812.6,0.35665358]
[1746442909502,5.51663264,1812.7,1812.6,0.90665358]
[1746442910795,5.51663264,1812.7,1812.6,0.55]
[1746442911122,5.51653703,1812.8,1812.7,0.55]
[1746442911517,5.51653703,1812.8,1812.6,0.55]
[1746442911518,10.93310263,1812.8,1812.6,0.55]
[1746442911701,5.41653703,1812.8,1812.6,0.55]
[1746442912303,5.41653703,1812.8,1812.6,0.6051624]
[1746442912717,5.41653703,1812.8,1812.6,1.27404881]
[1746442913298,5.51663264,1812.7,1812.6,1.21888641]
[1746442913501,5.51663264,1812.7,1812.6,0.55]
[1746442913700,5.41653703,1812.8,1812.6,0.55]
[1746442914331,5.5162075,1812.9,1812.8,0.55]
[1746442915527,5.51602404,1812.9,1812.8,0.55]
[1746442915745,5.51600295,1813.0,1812.8,0.55]
[1746442915906,5.51602404,1812.9,1812.8,0.55]
[1746442916835,11.03195628,1813.0,1812.8,0.55]
[1746442917059,11.03196909,1813.0,1812.8,0.55]
[1746442917217,5.51553595,1813.1,1812.8,6.06623969]
[1746442917419,6.41021367,1813.2,1813.0,0.55]
[1746442917717,11.92557417,1813.2,1813.0,0.55]
[1746442917918,5.51541558,1813.1,1813.0,0.55]
[1746442918452,0.89497778,1813.2,1813.0,1.3498]
[1746442918639,0.89497778,1813.2,1813.0,1.91633576]
[1746442919027,6.41019804,1813.2,1813.0,1.91633576]
[1746442919651,0.89497778,1813.2,1813.0,1.91633576]
[1746442920431,0.89497778,1813.2,1813.0,7.43204462]
[1746442920765,0.89497778,1813.2,1813.1,1.29320446]
[1746442922569,0.89497778,1813.2,1813.1,0.55]
[1746442924073,0.89497778,1813.2,1813.1,6.63195134]
[1746442924231,0.89497778,1813.2,1813.1,0.56653576]
[1746442924438,5.51568378,1813.1,1812.8,4.832]
[1746442924650,5.51568378,1813.1,1812.8,4.88715611]
[1746442924851,5.51568378,1813.1,1812.8,6.06466614]
[1746442925276,5.51573238,1813.0,1812.9,4.2585778]
[1746442926174,5.51573238,1813.0,1812.9,3.7085778]
[1746442926534,5.51573238,1813.0,1812.9,4.2585778]
[1746442929193,5.51573238,1813.0,1812.9,0.55]
[1746442929902,5.51693699,1812.6,1812.5,7.2585778]
[1746442930105,5.51693699,1812.6,1812.5,5.31143174]
[1746442930958,5.51670882,1812.7,1812.6,0.55]
[1746442931158,11.03309896,1812.8,1812.6,0.55]
[1746442931369,5.51654732,1812.8,1812.6,0.55]
[1746442931603,11.03317916,1812.8,1812.6,0.55]
[1746442931904,5.51663264,1812.7,1812.6,0.55]
[1746442932081,5.51663264,1812.7,1812.6,1.08665981]
[1746442932255,5.51654732,1812.8,1812.6,1.08665981]
[1746442932493,5.51663264,1812.7,1812.6,1.08665981]
[1746442932884,5.51663264,1812.7,1812.6,0.55]
[1746442933196,11.03310358,1812.8,1812.6,0.55]
[1746442933488,5.51663264,1812.7,1812.6,0.55]
[1746442934489,11.03315814,1812.8,1812.6,0.55]
[1746442934659,5.51654732,1812.8,1812.6,0.55]
[1746442935495,5.51663264,1812.7,1812.6,0.55]
[1746442937295,5.51663264,1812.7,1812.6,3.55]
[1746442939296,5.51663264,1812.7,1812.6,4.27585778]
[1746442939607,5.51654732,1812.8,1812.5,3.55]
[1746442939811,11.03313135,1812.8,1812.5,3.55]
[1746442940112,5.51664467,1812.7,1812.5,3.55]
[1746442940609,5.51664467,1812.7,1812.5,0.55]
[1746442941815,5.51654732,1812.8,1812.6,7.22695245]
[1746442942118,5.51654732,1812.8,1812.6,7.95516451]
[1746442942524,5.51654732,1812.8,1812.7,0.55]
[1746442947240,5.51613954,1812.9,1812.7,1.3454]
[1746442948340,5.51587311,1813.0,1812.7,1.3454]
[1746442948737,5.51587311,1813.0,1812.7,1.91193576]
[1746442948934,5.51587311,1813.0,1812.7,1.96709364]
[1746442949240,5.51559736,1813.1,1812.7,12.99999164]
[1746442949440,5.51559736,1813.1,1812.9,0.55]
[1746442949611,6.41021272,1813.2,1812.9,0.55]
[1746442950234,6.41021272,1813.2,1813.1,0.55]
[1746442951446,0.89497778,1813.2,1813.1,6.06541558]
[1746442951748,0.89497778,1813.2,1813.1,6.63195134]
[1746442952046,0.89497778,1813.2,1813.1,8.70040609]
[1746442952226,0.89497778,1813.2,1813.1,8.75554974]
[1746442953351,0.89497778,1813.2,1813.1,8.70040609]
[1746442954416,0.89497778,1813.2,1813.1,2.40769051]
[1746442954611,0.89497778,1813.2,1813.1,1.11653576]
[1746442955645,6.41008918,1813.2,1813.1,1.11653576]
[1746442955853,6.41008918,1813.2,1813.0,0.60515111]
[1746442956016,6.41008918,1813.2,1813.0,0.55]
[1746442956216,0.89497778,1813.1,1813.0,0.55]
[1746442956518,0.89497778,1813.1,1813.0,1.53991778]
[1746442956939,6.41039336,1813.1,1813.0,0.55]
[1746442957145,0.89497778,1813.1,1812.9,0.60515429]
[1746442957862,0.89497778,1813.1,1812.9,6.12113889]
[1746442958158,0.73298265,1813.2,1813.1,0.55]
[1746442958331,0.73298265,1813.2,1813.1,1.21170919]
[1746442958533,0.73298265,1813.2,1813.1,6.72712477]
[1746442958857,0.73298265,1813.2,1813.1,7.53552491]
[1746442959058,0.73298265,1813.2,1813.1,8.04691293]
[1746442959944,0.73298265,1813.2,1813.1,8.10205545]
[1746442960742,0.73298265,1813.2,1813.1,8.04691293]
[1746442961765,0.73298265,1813.2,1813.1,8.10205539]
[1746442963663,0.73298265,1813.2,1813.1,14.72704865]
[1746442967268,0.73298265,1813.2,1813.1,11.01037747]
[1746442967569,5.51407827,1813.6,1813.1,11.01037747]
[1746442967570,5.51407827,1813.6,1813.3,0.55]
[1746442967755,5.51376441,1813.7,1813.3,12.73732859]
[1746442968066,5.92914343,1813.8,1813.5,0.55]
[1746442968872,5.51359101,1813.7,1813.5,0.55]
[1746442969169,5.92914343,1813.8,1813.5,0.55]
[1746442969373,5.51372811,1813.7,1813.5,0.55]
[1746442969537,5.51372811,1813.7,1813.5,1.23935288]
[1746442970167,5.51372811,1813.7,1813.5,0.55]
[1746442970463,7.87993343,1813.6,1813.5,0.55]
[1746442970691,5.51440983,1813.5,1813.3,3.55]
[1746442970859,5.51450314,1813.4,1813.2,8.5995]
[1746442971030,11.0288681,1813.5,1813.2,8.5995]
[1746442971234,5.51450314,1813.4,1813.2,10.4246431]
[1746442971566,5.51450314,1813.4,1813.3,0.55]
[1746442972066,5.51440983,1813.5,1813.3,0.55]
[1746442972284,11.02886407,1813.5,1813.3,0.55]
[1746442972484,5.51450314,1813.4,1813.3,0.55]
[1746442972676,5.51480725,1813.3,1813.2,6.71306503]
[1746442973064,5.51480725,1813.3,1813.2,7.26306503]
[1746442973276,5.51480725,1813.3,1813.2,6.71306503]
[1746442973478,5.51480725,1813.3,1813.2,7.26306503]
[1746442974774,5.51480725,1813.3,1813.2,0.55]
[1746442975072,5.5151114,1813.2,1813.1,3.55]
[1746442975704,5.5151114,1813.2,1813.1,3.0]
[1746442977697,5.51577891,1813.0,1812.9,3.55]
[1746442978158,5.51577891,1813.0,1812.9,4.33847562]
[1746442978655,5.51577891,1813.0,1812.9,3.78847562]
[1746442978878,5.51577891,1813.0,1812.9,0.78847562]
[1746442979898,5.50993211,1813.0,1812.9,0.78847562]
[1746442981290,5.51602404,1812.9,1812.8,4.11653576]
[1746442981470,5.50993211,1813.0,1812.8,4.11653576]
[1746442981670,5.50993211,1813.0,1812.8,1.11653576]
[1746442981886,5.51602404,1812.9,1812.8,0.55]
[1746442982197,5.51632833,1812.8,1812.7,4.26306503]
[1746442982497,5.51632833,1812.8,1812.7,4.68937153]
[1746442982675,5.51602404,1812.9,1812.8,0.55]
[1746442984298,5.51632833,1812.8,1812.7,4.13937153]
[1746442984601,5.51562969,1813.1,1812.8,4.26306503]
[1746442984800,5.51562969,1813.1,1812.9,0.4263065]
[1746442986797,5.51531614,1813.2,1812.9,0.4263065]
[1746442986971,5.51550116,1813.1,1812.9,0.4263065]
[1746442987165,5.51550116,1813.1,1813.0,0.55]
[1746442987372,5.5157198,1813.0,1812.9,4.13937153]
[1746442989406,5.51550116,1813.1,1812.9,4.13937153]
[1746442989574,5.51550116,1813.1,1813.0,0.41393715]
[1746442990765,5.51516309,1813.2,1813.0,0.96393715]
[1746442991103,5.51516309,1813.2,1813.1,0.55]
[1746442991302,5.5157198,1813.0,1812.9,0.56653576]
[1746442991489,5.51602404,1812.9,1812.8,3.71306503]
[1746443003635,5.5157198,1813.0,1812.8,4.88797153]
[1746443003795,5.51515852,1813.2,1812.9,2.89883286]
[1746443003796,5.51535604,1813.2,1812.9,2.89883286]
[1746443003995,5.51542201,1813.1,1812.9,2.89883286]
[1746443004199,5.51535604,1813.2,1812.9,2.89883286]
[1746443004411,5.51534144,1813.2,1813.1,0.8044]
[1746443004622,5.51496868,1813.3,1813.1,1.3544]
[1746443006797,5.5151114,1813.2,1813.1,1.3544]
[1746443008425,5.51496868,1813.3,1813.1,1.3544]
[1746443009224,5.5151114,1813.2,1813.1,1.3544]
[1746443009384,5.5151114,1813.2,1813.1,1.79869747]
[1746443009588,5.5151114,1813.2,1813.1,4.5451723]
[1746443010139,5.5151114,1813.2,1813.1,3.7407723]
[1746443011450,5.5151114,1813.2,1813.0,2.79869137]
[1746443011451,5.51541558,1813.1,1813.0,2.79869137]
[1746443012144,5.51541558,1813.1,1813.0,3.34869137]
[1746443013231,10.74510688,1813.8,1813.3,0.55]
[1746443013232,5.51446478,1813.5,1813.3,0.55]
[1746443013421,11.02893033,1813.5,1813.3,1.3198]
[1746443013624,5.51445665,1813.5,1813.3,1.73072786]
[1746443014412,5.51407379,1813.6,1813.3,1.73072786]
[1746443015324,5.51411516,1813.6,1813.3,4.46574112]
[1746443015562,11.02824667,1813.6,1813.3,4.46574112]
[1746443015838,5.51411516,1813.6,1813.3,4.46574112]
[1746443016035,5.51411298,1813.6,1813.4,0.44657411]
[1746443016262,11.0282871,1813.6,1813.4,0.44657411]
[1746443016499,5.51411298,1813.6,1813.4,0.44657411]
[1746443016762,5.51404987,1813.6,1813.4,0.44657411]
[1746443016926,11.0281713,1813.6,1813.4,0.44657411]
[1746443017127,5.51404987,1813.6,1813.4,0.44657411]
[1746443018764,5.51389501,1813.6,1813.4,0.44657411]
[1746443019770,5.51419906,1813.5,1813.4,0.44657411]
[1746443020467,5.51389501,1813.6,1813.4,0.44657411]
[1746443021967,5.51389501,1813.6,1813.5,0.55]
[1746443022961,5.51389501,1813.6,1813.4,0.99657411]